bitfinex-derivatives/quotes_ETHF0:USTF0_20250918
["timestamp","ask_amount","ask_price","bid_price","bid_amount"]
[1758167227811,0.569328,4618.3,4618.2,0.74385369]
[1758167228009,0.569328,4618.3,4618.2,0.43065369]
[1758167228213,0.2099,4618.3,4618.2,0.43065369]
[1758167228417,0.569328,4618.3,4618.2,0.43065369]
[1758167228614,3.6387,4618.8,4618.7,0.7222]
[1758167228812,4.20816686,4618.8,4618.7,0.7222]
[1758167229013,4.71716686,4618.8,4618.7,0.7222]
[1758167229519,5.64442943,4618.8,4618.7,0.7222]
[1758167229719,5.64442943,4618.8,4618.7,0.5252]
[1758167230820,5.64442943,4618.8,4618.2,0.02165369]
[1758167231122,0.3068,4618.6,4618.3,0.409]
[1758167231320,0.3068,4618.6,4618.4,0.3132]
[1758167231321,0.2099,4618.5,4618.4,0.3132]
[1758167231520,0.2099,4618.5,4618.4,0.7222]
[1758167234221,0.3068,4618.7,4618.4,0.7222]
[1758167234421,0.5167,4618.7,4618.6,0.7222]
[1758167234617,1.08704986,4618.7,4618.6,0.7222]
[1758167235216,0.78024986,4618.7,4618.6,0.7222]
[1758167235414,0.221,4618.8,4618.7,0.7222]
[1758167235814,0.79129533,4618.8,4618.7,0.7222]
[1758167236215,1.00119533,4618.8,4618.7,0.7222]
[1758167236817,1.28919533,4618.8,4618.7,0.7222]
[1758167238622,1.28915835,4618.8,4618.7,0.7222]
[1758167238821,0.7189,4618.8,4618.7,0.7222]
[1758167239224,1.28916685,4618.8,4618.7,0.7222]
[1758167241523,0.57026685,4618.8,4618.7,0.7222]
[1758167241719,0.7189,4618.9,4618.8,0.7222]
[1758167241925,1.28914962,4618.9,4618.8,0.7222]
[1758167242723,1.28914962,4618.9,4618.6,0.3132]
[1758167242926,0.7189,4618.7,4618.6,0.5252]
[1758167243826,1.47528351,4618.7,4618.6,0.5252]
[1758167244527,2.04569825,4618.7,4618.6,0.5252]
[1758167244726,1.47528351,4618.7,4618.6,0.5252]
[1758167245321,1.47528351,4618.7,4618.2,0.02165369]
[1758167245322,0.1194,4618.5,4618.2,0.02165369]
[1758167245524,3.9267,4618.3,4618.2,0.02165369]
[1758167245829,4.4972011,4618.3,4618.2,0.02165369]
[1758167246628,5.25358461,4618.3,4618.2,0.02165369]
[1758167249726,5.47458461,4618.3,4618.2,0.54685369]
[1758167250926,5.25358461,4618.3,4618.2,0.54685369]
[1758167251132,4.90408351,4618.3,4618.2,0.74385369]
[1758167253927,3.6199,4618.3,4618.2,1.5002372]
[1758167254126,3.6199,4618.3,4618.2,0.74385369]
[1758167254333,3.8409,4618.3,4618.2,0.74385369]
[1758167254535,3.2078,4619.0,4618.5,0.12]
[1758167254727,3.7245,4619.0,4618.9,0.7222]
[1758167254928,4.1477,4619.0,4618.9,0.7222]
[1758167255123,4.2671,4619.0,4618.5,0.12]
[1758167255433,1.47528351,4618.6,4618.5,0.8422]
[1758167255937,1.47528351,4618.6,4618.5,0.5073]
[1758167256937,0.2099,4618.6,4618.5,1.58088351]
[1758167257227,0.221,4618.8,4618.7,0.6879]
[1758167257429,0.4165,4618.8,4618.7,0.6879]
[1758167259427,0.4165,4618.8,4618.2,0.02735369]
[1758167259428,0.3963,4618.3,4618.2,0.02735369]
[1758167259631,4.88328351,4618.3,4618.2,0.02735369]
[1758167259830,5.41679309,4618.3,4618.2,0.02735369]
[1758167261929,3.9059,4618.3,4618.2,1.4716372]
[1758167262133,4.1269,4618.3,4618.2,1.4716372]
[1758167263129,3.8251,4618.3,4618.2,1.4716372]
[1758167263332,3.6041,4618.3,4618.2,1.4716372]
[1758167263636,3.9059,4618.3,4618.2,1.4716372]
[1758167264737,0.6173,4618.3,4618.2,1.4716372]
[1758167264933,0.3963,4618.3,4618.2,1.4716372]
[1758167265132,0.6173,4618.3,4618.2,1.4716372]
[1758167265431,0.3963,4618.3,4618.2,1.4716372]
[1758167265626,0.6173,4618.3,4618.2,1.4716372]
[1758167265937,0.3963,4618.3,4618.2,1.4716372]
[1758167266134,0.3963,4618.3,4618.2,0.71525369]
[1758167266335,0.6981,4618.3,4618.2,0.71525369]
[1758167267337,0.6981,4618.3,4618.2,0.70955369]
[1758167268633,0.1205,4618.0,4617.7,0.0212]
[1758167268841,3.9059,4617.8,4617.7,0.0212]
[1758167269042,4.43937412,4617.8,4617.7,0.0212]
[1758167269245,4.43937412,4617.8,4616.9,0.3006]
[1758167269436,4.43937412,4617.8,4616.9,0.4947]
[1758167269437,0.6981,4617.0,4616.9,0.4947]
[1758167269641,1.45448351,4617.0,4616.9,0.4947]
[1758167269843,1.45448351,4617.0,4616.9,0.6879]
[1758167270142,0.3963,4617.0,4616.9,0.6879]
[1758167271243,0.3963,4617.0,4616.9,1.44428351]
[1758167271446,0.1955,4617.0,4616.9,0.6879]
[1758167271743,1.05818351,4617.4,4617.3,0.6879]
[1758167271744,0.6981,4617.4,4617.3,0.6879]
[1758167271940,0.3963,4617.4,4617.3,0.6879]
[1758167273045,0.1955,4617.4,4617.3,0.6879]
[1758167273841,0.3018,4618.2,4617.6,0.6879]
[1758167274035,0.4973,4618.2,4618.1,1.44428351]
[1758167274240,0.4973,4618.2,4618.1,0.6879]
[1758167274241,0.1955,4618.2,4618.1,0.6879]
[1758167274441,0.1955,4618.2,4618.1,1.44428351]
[1758167277549,1.25368351,4618.6,4618.5,0.8119]
[1758167277741,1.45448351,4618.6,4618.5,0.8119]
[1758167277943,1.45448351,4618.6,4618.0,0.124]
[1758167278139,1.15268351,4618.2,4618.1,0.6879]
[1758167278346,1.45448351,4618.2,4618.1,0.6879]
[1758167279649,0.3963,4618.2,4618.1,0.6879]
[1758167279844,0.3963,4618.2,4618.1,1.44428351]
[1758167280048,1.26888351,4618.6,4618.5,0.5119]
[1758167280348,1.26888351,4618.6,4618.5,0.8026]
[1758167280744,1.47708351,4618.6,4618.5,0.8026]
[1758167281347,0.4206,4618.1,4618.0,0.5199]
[1758167281650,0.4206,4618.1,4618.0,0.8106]
[1758167281838,0.4206,4618.1,4618.0,1.56698351]
[1758167283049,3.2078,4619.3,4619.0,0.116]
[1758167283254,3.9285,4619.3,4619.2,0.6866]
[1758167283752,0.4206,4619.3,4619.2,0.6866]
[1758167284140,0.2124,4619.3,4619.2,0.6866]
[1758167286049,1.27648351,4619.7,4619.2,0.6866]
[1758167286250,1.67508351,4619.7,4619.6,0.5106]
[1758167286849,0.6987,4619.7,4619.6,0.723]
[1758167287954,0.3941,4619.7,4619.6,0.723]
[1758167288551,0.3941,4619.1,4619.0,0.5106]
[1758167288753,0.6987,4618.6,4618.5,0.5106]
[1758167288948,1.45508351,4618.6,4618.5,0.5106]
[1758167289149,1.15048351,4618.6,4618.2,0.75638351]
[1758167289344,0.3941,4618.4,4618.3,0.5106]
[1758167289645,0.6987,4618.4,4618.3,0.5106]
[1758167289954,0.6987,4618.4,4618.3,0.723]
[1758167291251,0.3941,4618.4,4618.3,0.723]
[1758167291859,0.197,4618.4,4618.3,0.723]
[1758167294353,0.6987,4618.4,4618.3,0.723]
[1758167296751,0.3941,4618.4,4618.3,0.1937]
[1758167296950,0.3941,4618.4,4618.3,0.5106]
[1758167297352,0.6987,4618.4,4618.3,0.5106]
[1758167298757,0.6987,4618.4,4618.3,0.723]
[1758167298954,3.2078,4618.8,4618.4,0.3169]
[1758167298955,0.3046,4618.7,4618.4,0.3169]
[1758167299263,0.6987,4618.7,4618.6,0.723]
[1758167302761,0.3046,4618.6,4618.4,0.4856]
[1758167303065,0.3941,4618.5,4618.4,0.3624]
[1758167303267,0.3941,4618.5,4618.4,0.8917]
[1758167303268,0.6987,4618.5,4618.4,0.8917]
[1758167305467,0.3941,4618.5,4618.4,0.8917]
[1758167305966,3.5124,4618.8,4618.5,0.4434]
[1758167306169,0.197,4618.6,4618.5,0.8495]
[1758167309071,3.2078,4618.8,4618.6,0.3169]
[1758167309271,3.2078,4618.8,4618.7,0.723]
[1758167309469,3.4048,4618.8,4618.7,0.723]
[1758167309763,3.7094,4618.8,4618.7,0.723]
[1758167309971,3.9065,4618.8,4618.7,0.723]
[1758167312065,3.9065,4618.8,4618.7,0.5106]
[1758167313873,4.83487896,4618.8,4618.7,0.5106]
[1758167314576,0.815,4618.5,4618.4,0.1687]
[1758167314870,1.74337896,4618.5,4618.4,0.1687]
[1758167317070,7.40664971,4618.5,4618.1,0.0216]
[1758167317273,4.84187896,4618.2,4618.1,0.0216]
[1758167317469,5.58025075,4618.2,4618.1,0.0216]
[1758167318473,5.81395125,4618.2,4618.1,0.0216]
[1758167319271,10.03049125,4618.2,4617.4,0.2939]
[1758167319577,0.7057,4617.0,4616.9,0.4925]
[1758167319771,0.7057,4617.0,4616.9,0.6894]
[1758167324577,0.8288,4617.0,4616.5,0.1265]
[1758167324873,0.7057,4616.7,4616.6,0.6894]
[1758167325073,4.1335,4617.1,4617.0,0.6894]
[1758167325272,5.06187896,4617.1,4617.0,0.4925]
[1758167326378,5.06187896,4617.1,4616.5,0.1265]
[1758167326573,4.84187896,4617.1,4616.6,0.2939]
[1758167326773,0.7057,4616.7,4616.6,0.4925]
[1758167327073,0.7057,4616.7,4616.6,0.6894]
[1758167328073,0.9257,4616.7,4616.1,3.4278]
[1758167328273,0.5031,4616.2,4616.1,0.9094]
[1758167328475,3.2078,4617.1,4617.0,0.8131]
[1758167328675,3.6288,4617.1,4617.0,0.8131]
[1758167328880,3.9309,4617.1,4617.0,0.8131]
[1758167329474,3.6288,4617.1,4617.0,0.8131]
[1758167329679,3.2078,4617.1,4617.0,0.8131]
[1758167330682,3.2078,4617.1,4617.0,4.8131]
[1758167331874,3.2078,4617.1,4616.5,0.1237]
[1758167331875,0.7057,4616.6,4616.5,0.6894]
[1758167332181,4.13617896,4617.1,4617.0,0.8131]
[1758167332182,3.4088,4617.1,4617.0,0.8131]
[1758167332781,3.9135,4617.1,4617.0,0.6894]
[1758167334889,3.9135,4617.1,4617.0,0.8131]
[1758167334890,3.6114,4617.1,4617.0,0.8131]
[1758167336588,3.4088,4617.1,4617.0,0.8131]
[1758167336781,0.22,4617.7,4617.1,0.2939]
[1758167336982,0.22,4617.7,4617.0,0.5192]
[1758167336983,0.9257,4617.7,4617.6,0.3955]
[1758167337183,0.9257,4617.7,4617.6,0.6894]
[1758167338184,0.7057,4617.7,4617.6,0.6894]
[1758167338397,0.9257,4617.7,4617.6,0.6894]
[1758167338893,0.6236,4617.7,4617.0,0.4121]
[1758167339189,0.2085,4617.1,4617.0,1.75297896]
[1758167339384,3.2078,4617.8,4617.0,1.46457896]
[1758167339587,0.7023,4617.7,4617.6,0.4992]
[1758167339786,0.9223,4617.7,4617.6,0.7009]
[1758167340693,0.6239,4617.7,4617.6,1.62927896]
[1758167341395,0.4039,4617.7,4617.6,1.62927896]
[1758167341995,0.7023,4617.7,4617.6,1.62927896]
[1758167342590,3.2078,4617.8,4617.7,0.2884]
[1758167342790,3.6117,4619.1,4619.0,0.8163]
[1758167342998,3.6117,4619.8,4619.7,0.2108]
[1758167343187,3.9101,4619.8,4619.7,1.62927896]
[1758167344096,0.4039,4619.8,4619.7,1.62927896]
[1758167344694,1.0,4620.0,4619.9,0.4125]
[1758167344892,1.7023,4620.0,4619.9,0.7009]
[1758167345392,1.4039,4620.0,4619.9,0.7009]
[1758167345601,1.0,4620.0,4619.9,0.7009]
[1758167346296,1.0,4620.0,4619.9,1.84927896]
[1758167346499,1.0,4620.0,4619.9,4.9209]
[1758167349005,1.2086,4620.0,4619.9,4.9209]
[1758167349505,1.4113,4620.0,4619.9,0.9209]
[1758167349697,1.7029,4620.0,4619.9,0.9209]
[1758167350309,1.7029,4620.0,4619.9,0.2108]
[1758167350595,1.8252,4620.0,4619.9,0.2108]
[1758167350998,0.7029,4619.7,4619.6,0.7333]
[1758167351591,0.7029,4619.7,4619.6,0.9251]
[1758167351796,0.7029,4619.7,4619.6,0.7051]
[1758167352706,0.7029,4619.7,4619.5,0.22]
[1758167352907,0.2916,4619.6,4619.5,0.22]
[1758167353106,0.7029,4619.6,4619.5,0.7333]
[1758167353405,0.7029,4619.6,4619.5,0.22]
[1758167353592,0.2027,4619.4,4619.3,0.499]
[1758167353797,0.2086,4619.6,4619.5,0.1232]
[1758167353994,0.7029,4619.6,4619.5,0.5211]
[1758167354405,0.7029,4619.6,4619.5,0.8283]
[1758167355404,0.2086,4619.6,4619.5,0.8283]
[1758167357499,1.2916,4620.0,4619.6,0.3072]
[1758167357705,0.4113,4620.0,4619.9,0.7051]
[1758167358002,0.2086,4620.0,4619.9,0.7051]
[1758167360505,3.2078,4620.3,4620.2,0.7051]
[1758167361010,3.4164,4620.3,4620.2,0.7051]
[1758167361602,3.9107,4620.3,4620.2,0.7051]
[1758167362713,3.6191,4620.3,4620.2,0.7051]
[1758167363513,3.9107,4620.3,4620.2,0.7051]
[1758167364717,3.9107,4620.3,4620.0,0.3072]
[1758167364915,3.9107,4620.3,4619.7,0.22]
[1758167365115,0.4113,4619.8,4619.7,0.9251]
[1758167365417,0.7029,4619.8,4619.7,0.9251]
[1758167366714,0.4113,4619.8,4619.7,3.52225805]
[1758167366915,0.7029,4620.2,4620.1,0.7051]
[1758167367816,3.2078,4620.3,4620.1,3.30225805]
[1758167368022,3.2078,4620.3,4620.2,0.7051]
[1758167368223,0.5116,4620.6,4620.3,0.3072]
[1758167368521,0.2086,4620.4,4620.3,0.7051]
[1758167369222,3.6191,4620.8,4620.7,0.7051]
[1758167369416,3.9107,4620.8,4620.7,0.7051]
[1758167370120,0.2916,4620.7,4620.5,0.3072]
[1758167370323,0.7029,4620.6,4620.5,0.8283]
[1758167370519,0.4113,4620.6,4620.5,0.8283]
[1758167371822,0.4113,4620.6,4620.5,1.58392731]
[1758167372022,0.2086,4620.6,4620.5,1.58392731]
[1758167375925,0.2086,4620.6,4620.5,0.8283]
[1758167376128,0.2086,4620.6,4620.5,1.58392731]
[1758167376823,3.4278,4620.8,4620.5,1.58392731]
[1758167377027,3.6192,4620.8,4620.7,1.45932731]
[1758167377922,3.9069,4620.8,4620.7,1.45932731]
[1758167378129,4.1269,4620.8,4620.7,1.45932731]
[1758167378925,4.1269,4620.8,4620.6,0.75562731]
[1758167379130,0.6991,4620.7,4620.6,1.25862731]
[1758167379335,0.9191,4620.7,4620.6,1.25862731]
[1758167379625,3.2078,4620.8,4620.7,0.2912]
[1758167379826,3.2078,4620.8,4620.7,0.7037]
[1758167380020,3.3992,4620.8,4620.7,0.7037]
[1758167380223,3.3992,4620.8,4620.7,1.45932731]
[1758167380627,0.1914,4620.8,4620.7,1.45932731]
[1758167381731,1.4969,4621.0,4620.9,0.4125]
[1758167381936,1.6991,4621.0,4620.9,0.7037]
[1758167383232,1.6991,4621.0,4620.9,1.45932731]
[1758167385630,1.8199,4621.0,4620.9,1.32112731]
[1758167386135,1.8199,4621.0,4620.9,1.02992731]
[1758167386928,1.8199,4621.0,4620.9,0.96742731]
[1758167388531,0.6991,4620.7,4620.6,0.1731]
[1758167388724,0.6991,4620.7,4620.6,0.1947]
[1758167389733,1.45472731,4620.7,4620.6,0.1947]
[1758167389940,2.2091698,4620.7,4620.6,0.1947]
[1758167390831,1.45354249,4620.7,4620.6,0.1947]
[1758167391335,1.21922201,4620.7,4620.6,0.1947]
[1758167391636,2.20919078,4620.7,4620.6,0.1947]
[1758167392838,1.45356347,4620.7,4620.6,0.1947]
[1758167393035,1.21922201,4620.7,4620.6,0.8984]
[1758167393237,0.6991,4620.7,4620.6,0.95032731]
[1758167393434,0.6991,4620.7,4620.6,1.16212731]
[1758167393637,0.9191,4620.7,4620.6,1.65402731]
[1758167394241,0.9191,4620.7,4620.6,1.36282731]
[1758167394832,1.67472731,4620.7,4620.6,0.1947]
[1758167395134,2.19135177,4620.7,4620.6,0.1947]
[1758167395334,2.19493177,4620.7,4620.6,0.1947]
[1758167397330,0.3055,4620.6,4620.0,0.75562731]
[1758167397644,0.6991,4620.1,4620.0,1.58042731]
[1758167397833,0.6991,4620.1,4620.0,0.8248]
[1758167398340,0.1914,4620.1,4620.0,0.8248]
[1758167398740,0.1914,4620.1,4620.0,2.33605462]
[1758167399137,0.5121,4620.3,4620.1,0.3096]
[1758167399439,0.4893,4620.2,4620.1,0.7244]
[1758167400437,0.4893,4620.2,4620.1,1.48002731]
[1758167401738,0.4172,4620.4,4620.3,0.2081]
[1758167401942,0.7093,4620.4,4620.3,0.7244]
[1758167402146,0.9052,4620.4,4619.8,0.3096]
[1758167402445,0.9052,4620.4,4619.5,3.3289]
[1758167402446,0.2921,4619.6,4619.5,0.5177]
[1758167402736,0.4893,4619.9,4619.8,0.4148]
[1758167402938,3.2078,4620.2,4619.9,0.3096]
[1758167402939,3.4999,4620.2,4619.9,0.3096]
[1758167403138,3.4999,4620.2,4620.1,0.4148]
[1758167403342,3.6971,4620.2,4620.1,0.7244]
[1758167403640,3.893,4620.2,4620.1,0.7244]
[1758167404435,0.6852,4620.2,4620.1,0.7244]
[1758167404846,0.2921,4620.6,4620.2,0.3096]
[1758167405144,0.7093,4620.6,4620.5,0.8511]
[1758167405540,3.2078,4620.7,4620.5,0.8511]
[1758167405734,3.2078,4620.7,4620.6,1.48572731]
[1758167406544,1.0,4621.0,4620.9,0.7379]
[1758167406744,1.0,4621.0,4620.9,2.24915462]
[1758167407943,1.8553,4621.0,4620.9,1.49352731]
[1758167408144,1.735,4621.0,4620.9,1.49352731]
[1758167408734,1.5265,4621.0,4620.9,1.49352731]
[1758167409645,1.2081,4621.0,4620.9,2.24915462]
[1758167410447,1.0,4621.0,4620.9,2.24915462]
[1758167414040,1.0,4621.0,4620.9,6.24915462]
[1758167415344,3.2078,4621.8,4621.5,0.1249]
[1758167415647,0.2081,4621.9,4621.8,0.7379]
[1758167415847,0.5265,4621.9,4621.8,1.49352731]
[1758167416155,0.8553,4621.5,4621.4,3.7343]
[1758167416346,0.735,4621.5,4621.4,4.70132731]
[1758167417242,0.3184,4621.9,4621.6,0.3174]
[1758167417444,3.9428,4622.3,4622.2,0.7379]
[1758167417642,3.9428,4622.3,4622.2,2.24915462]
[1758167417846,3.4159,4622.3,4622.2,2.24915462]
[1758167418152,3.7343,4622.3,4622.2,2.24915462]
[1758167418549,0.5265,4622.3,4622.2,2.24915462]
[1758167418850,0.2081,4622.3,4622.2,2.24915462]
[1758167420151,3.9428,4622.8,4622.7,0.2091]
[1758167420349,3.9428,4622.8,4622.7,0.96472731]
[1758167420543,3.9428,4622.8,4622.7,1.28212731]
[1758167421750,3.9428,4622.8,4622.7,1.49352731]
[1758167422652,0.735,4622.9,4622.8,0.3174]
[1758167422859,0.735,4622.9,4622.8,0.4281]
[1758167423544,0.735,4622.9,4622.0,0.1249]
[1758167423545,4.0,4622.9,4620.5,3.3327]
[1758167423750,0.92782931,4621.1,4620.5,0.1249]
[1758167423952,0.92782931,4620.6,4620.1,0.3174]
[1758167424146,3.2078,4620.2,4620.1,0.3174]
[1758167424652,3.4298,4620.2,4620.1,0.3174]
[1758167425051,3.4298,4620.2,4620.1,0.5265]
[1758167425052,3.2078,4620.2,4620.1,0.5265]
[1758167425962,3.2078,4620.2,4620.1,0.3174]
[1758167426354,3.2078,4620.2,4620.1,0.7379]
[1758167426862,3.2078,4620.2,4620.1,0.5265]
[1758167427057,3.2078,4620.2,4620.0,0.1249]
[1758167427367,0.222,4620.1,4619.6,0.3174]
[1758167427569,3.2078,4619.7,4619.6,0.3174]
[1758167427965,3.2078,4619.7,4619.6,0.5265]
[1758167430262,3.2078,4619.7,4619.6,0.7379]
[1758167431763,3.2078,4619.7,4619.6,0.3174]
[1758167432367,3.4298,4619.7,4619.6,0.3174]
[1758167432760,3.2078,4619.7,4619.6,0.7379]
[1758167436368,3.2078,4620.2,4620.1,0.7183]
[1758167436570,3.2078,4620.2,4619.5,0.1249]
[1758167436571,3.4298,4620.2,4619.5,0.1249]
[1758167436768,3.4298,4620.2,4620.0,0.1173]
[1758167436965,3.4298,4620.2,4620.1,0.2991]
[1758167439266,3.2078,4620.2,4620.1,0.2991]
[1758167439474,3.2078,4620.2,4620.1,0.7183]
[1758167440475,3.2078,4620.7,4620.6,0.2086]
[1758167440682,3.4298,4620.7,4620.6,0.5077]
[1758167442076,3.4298,4620.7,4620.6,0.7183]
[1758167443181,3.2078,4620.7,4620.6,0.7183]
[1758167443366,3.4298,4620.7,4620.6,0.7183]
[1758167445079,3.4298,4620.7,4620.6,0.5077]
[1758167445475,3.4298,4620.7,4620.6,0.2991]
[1758167445979,3.4298,4620.7,4620.1,0.1731]
[1758167446282,3.2078,4620.2,4620.0,0.1173]
[1758167446482,3.2078,4620.2,4620.1,0.2991]
[1758167446683,3.4288,4620.2,4620.1,0.2991]
[1758167448383,3.4288,4620.2,4620.0,0.1173]
[1758167448585,3.4288,4620.2,4619.8,0.2991]
[1758167448784,3.4288,4620.2,4619.6,0.2991]
[1758167448980,3.4288,4620.2,4620.0,0.1173]
[1758167449180,3.4288,4620.2,4620.1,0.2991]
[1758167451386,3.4288,4620.2,4620.0,0.1173]
[1758167451880,3.4288,4620.2,4620.0,0.4164]
[1758167452080,3.4288,4620.2,4620.1,0.2991]
[1758167453286,4.17264506,4620.2,4620.1,0.2991]
[1758167453885,3.95164506,4620.2,4620.1,0.2991]
[1758167454085,4.17264506,4620.2,4620.1,0.7183]
[1758167454481,3.94488972,4620.2,4620.1,0.7183]
[1758167454887,3.72388972,4620.2,4620.1,0.7183]
[1758167455087,3.94488972,4620.2,4620.1,0.7183]
[1758167455882,3.94488972,4620.2,4620.1,0.2991]
[1758167456083,4.17265318,4620.2,4620.1,0.2991]
[1758167459994,4.17264179,4620.2,4620.1,0.2991]
[1758167461086,4.17264179,4620.2,4620.1,0.5077]
[1758167461493,3.95164179,4620.2,4620.1,0.5077]
[1758167461690,4.17264179,4620.2,4620.1,0.5077]
[1758167461993,3.95164179,4620.2,4620.1,0.7035]
[1758167462195,3.4288,4620.2,4620.1,0.7035]
[1758167465495,3.2078,4620.2,4620.1,0.7035]
[1758167468490,3.2078,4620.2,4620.1,0.5077]
[1758167468693,3.4288,4620.2,4620.1,0.2991]
[1758167468887,3.4288,4620.2,4620.0,0.1173]
[1758167469089,3.4288,4620.2,4620.0,0.4074]
[1758167469498,3.4288,4620.2,4620.1,0.2901]
[1758167471700,3.4288,4620.2,4620.1,0.5021]
[1758167471903,3.2078,4620.2,4620.1,0.6989]
[1758167472096,3.4288,4620.2,4620.1,0.6989]
[1758167473202,3.2078,4620.2,4620.1,0.6989]
[1758167473403,3.4288,4620.2,4620.1,0.6989]
[1758167474305,3.2078,4620.2,4620.1,0.6989]
[1758167474502,3.2078,4620.2,4620.1,0.5021]
[1758167475001,3.4288,4620.2,4620.1,0.5021]
[1758167476707,3.4288,4620.2,4620.1,0.6989]
[1758167479401,3.2078,4620.2,4620.1,1.62649138]
[1758167481004,0.221,4620.4,4620.3,0.212]
[1758167481204,0.221,4620.4,4620.3,0.6989]
[1758167482905,0.221,4620.5,4620.3,0.4088]
[1758167483104,0.221,4620.5,4620.4,0.5021]
[1758167483299,1.66790712,4620.5,4620.4,0.2901]
[1758167485813,1.49624653,4620.5,4620.4,0.2901]
[1758167487406,1.72618439,4620.5,4620.4,0.2901]
[1758167487812,1.72618439,4620.5,4620.0,0.1173]
[1758167488007,3.96373079,4620.1,4620.0,0.1173]
[1758167488215,4.18473079,4620.1,4620.0,0.1173]
[1758167488513,4.18473079,4620.1,4620.0,0.4074]
[1758167488703,4.18473079,4620.1,4620.0,0.6194]
[1758167490415,3.4288,4620.1,4620.0,0.6194]
[1758167491310,3.4288,4620.1,4620.0,0.8162]
[1758167492512,3.4278,4620.1,4620.0,0.8162]
[1758167499019,3.4278,4620.1,4620.0,0.4074]
[1758167499222,3.2078,4620.1,4620.0,0.6052]
[1758167499423,3.4278,4620.1,4620.0,0.6052]
[1758167499620,3.4278,4620.1,4620.0,0.8049]
[1758167502524,4.18373079,4620.1,4620.0,0.4074]
[1758167504130,5.91068175,4620.1,4619.8,0.322]
[1758167504327,0.97102017,4620.0,4619.8,0.322]
[1758167504535,0.97457017,4619.9,4619.8,0.0216]
[1758167504924,0.97457017,4619.9,4619.5,0.298]
[1758167505129,3.96373079,4619.6,4619.5,0.298]
[1758167505333,4.18373079,4619.6,4619.5,0.298]
[1758167505631,4.18373079,4619.6,4619.5,0.5984]
[1758167505930,4.70773381,4619.6,4619.5,0.5984]
[1758167508127,4.70744321,4619.6,4619.5,0.5984]
[1758167509229,4.93413009,4619.6,4619.5,0.4253]
[1758167509435,4.1781993,4619.6,4619.5,0.4253]
[1758167509636,4.93413009,4619.6,4619.5,0.4253]
[1758167511230,4.70744321,4619.6,4619.5,0.4253]
[1758167511428,4.70744321,4619.6,4619.5,0.6231]
[1758167514437,3.73151242,4619.6,4619.5,0.6231]
[1758167514634,4.70744321,4619.6,4619.5,0.6231]
[1758167518633,3.2078,4619.6,4619.5,0.8228]
[1758167518838,3.4278,4619.6,4619.5,0.8228]
[1758167520139,3.4278,4619.6,4619.5,0.6378]
[1758167520341,3.4278,4619.6,4619.5,0.8478]
[1758167521743,3.4278,4619.6,4619.5,0.6378]
[1758167522642,3.4278,4619.6,4619.5,0.4253]
[1758167522947,3.95156231,4619.6,4619.5,0.4253]
[1758167523145,3.95156231,4619.6,4619.5,0.8478]
[1758167523445,4.7074931,4619.6,4619.5,0.8478]
[1758167523844,4.4874931,4619.6,4619.5,0.8478]
[1758167524140,4.7074931,4619.6,4619.5,0.8478]
[1758167525042,4.7074931,4619.6,4619.5,0.6378]
[1758167525239,4.7074931,4619.6,4619.5,0.4253]
[1758167525837,4.7074931,4619.6,4619.5,0.621]
[1758167526741,4.4874931,4619.6,4619.5,0.621]
[1758167526935,3.95156231,4619.6,4619.5,0.8221]
[1758167527140,3.4278,4619.6,4619.5,0.8221]
[1758167527342,4.18373079,4619.6,4619.5,0.4253]
[1758167527543,4.70775449,4619.6,4619.5,0.4253]
[1758167528653,4.70775449,4619.6,4619.5,0.621]
[1758167528946,4.70775449,4619.6,4619.5,0.8221]
[1758167530736,4.70775449,4619.6,4619.5,0.621]
[1758167530941,4.70775449,4619.6,4619.5,0.4253]
[1758167531145,4.9333784,4619.6,4619.5,0.4253]
[1758167533243,5.1498484,4619.6,4619.0,0.1249]
[1758167533443,4.71966158,4619.1,4619.0,0.4149]
[1758167533648,5.68930919,4619.1,4619.0,0.4149]
[1758167533944,46.48930919,4619.1,4618.5,0.4155]
[1758167534142,3.96373079,4618.6,4618.5,0.1255]
[1758167534337,4.70775449,4618.6,4618.5,0.1255]
[1758167534537,4.70775449,4618.6,4618.5,0.4155]
[1758167535542,4.71189228,4618.6,4618.5,0.4155]
[1758167537948,4.71189228,4618.6,4618.5,0.6112]
[1758167538743,4.71189228,4618.6,4618.5,0.4155]
[1758167539143,4.71189228,4618.6,4618.5,0.6112]
[1758167540149,4.18373079,4618.6,4618.5,0.4155]
[1758167541448,4.71039827,4618.6,4618.5,0.4155]
[1758167542440,4.71039827,4618.6,4618.0,0.1201]
[1758167542649,3.96373079,4618.1,4618.0,0.1201]
[1758167542845,4.71039827,4618.1,4618.0,0.1201]
[1758167544544,4.71039827,4618.1,4618.0,0.4101]
[1758167544941,3.4278,4618.1,4618.0,1.56283079]
[1758167545152,3.4278,4618.1,4618.0,0.8069]
[1758167545651,4.18373079,4618.1,4618.0,0.8069]
[1758167545848,3.4278,4618.1,4618.0,0.8069]
[1758167547656,3.4278,4618.1,4618.0,0.6058]
[1758167547856,3.4278,4618.1,4618.0,0.8069]
[1758167551958,3.4278,4618.1,4618.0,0.6058]
[1758167552656,3.4278,4618.1,4618.0,0.8069]
[1758167552849,3.2078,4618.1,4618.0,0.8069]
[1758167553046,3.4278,4618.1,4618.0,0.8069]
[1758167554465,3.4278,4618.1,4618.0,0.6058]
[1758167554757,3.4278,4618.1,4618.0,0.4101]
[1758167556055,4.35645333,4618.1,4618.0,0.4101]
[1758167558559,4.35645333,4618.1,4618.0,0.6058]
[1758167558760,4.35645333,4618.1,4618.0,0.8067]
[1758167559459,4.35645333,4618.1,4618.0,0.4101]
[1758167560061,4.88182681,4618.1,4618.0,0.4101]
[1758167561758,3.95317348,4618.1,4618.0,0.4101]
[1758167561962,4.88182681,4618.1,4618.0,0.4101]